[Event "Early-Titled-Tuesday-Blitz-April-23-2024"]
[Site "Chess.com"]
[Date "2024.04.23"]
[Round "3"]
[White "Durarbayli"]
[Black "AradNazari"]
[Result "1-0"]
[WhiteElo "2939"]
[BlackElo "2717"]
[TimeControl "180+1"]
[EndTime "8:29:42 PDT"]
[Termination "Durarbayli won by checkmate"]

1. e4 {[%clk 0:03:00.9]} 1... c5 {[%clk 0:02:59.6]} 2. Nf3 {[%clk 0:03:01.1]}
2... d6 {[%clk 0:03:00.3]} 3. d4 {[%clk 0:03:01.3]} 3... cxd4 {[%clk 0:03:01.2]}
4. Nxd4 {[%clk 0:03:02]} 4... Nf6 {[%clk 0:03:02]} 5. Nc3 {[%clk 0:03:02.5]}
5... a6 {[%clk 0:03:02.7]} 6. h4 {[%clk 0:03:02.6]} 6... e5 {[%clk 0:02:55.4]}
7. Nf5 {[%clk 0:03:02.8]} 7... d5 {[%clk 0:02:52.2]} 8. Qf3 {[%clk 0:03:02.1]}
8... dxe4 {[%clk 0:02:26.2]} 9. Nxe4 {[%clk 0:03:00.7]} 9... Nxe4 {[%clk
0:02:20]} 10. Qxe4 {[%clk 0:02:58.7]} 10... Nc6 {[%clk 0:02:19.8]} 11. h5 {[%clk
0:02:20.4]} 11... Qf6 {[%clk 0:01:47.8]} 12. Ne3 {[%clk 0:02:19]} 12... Be6
{[%clk 0:01:39.5]} 13. Bd2 {[%clk 0:02:07.5]} 13... Bc5 {[%clk 0:01:32.3]} 14.
Bd3 {[%clk 0:01:53.1]} 14... Rd8 {[%clk 0:01:19.3]} 15. Qh4 {[%clk 0:01:26.8]}
15... h6 {[%clk 0:00:38.3]} 16. a3 {[%clk 0:01:18.7]} 16... Be7 {[%clk 0:00:23]}
17. Qxf6 {[%clk 0:00:57.9]} 17... Bxf6 {[%clk 0:00:23.9]} 18. O-O-O {[%clk
0:00:53]} 18... Bg5 {[%clk 0:00:24.3]} 19. Be4 {[%clk 0:00:52]} 19... O-O {[%clk
0:00:18]} 20. Bc3 {[%clk 0:00:37.2]} 20... Bf4 {[%clk 0:00:14.6]} 21. Kb1 {[%clk
0:00:34.2]} 21... f5 {[%clk 0:00:12.4]} 22. Bd5 {[%clk 0:00:30.7]} 22... Kf7
{[%clk 0:00:08.8]} 23. Bxc6 {[%clk 0:00:15.2]} 23... bxc6 {[%clk 0:00:09.2]} 24.
g3 {[%clk 0:00:16.1]} 24... Bxe3 {[%clk 0:00:08.8]} 25. fxe3 {[%clk 0:00:17]}
25... Bd5 {[%clk 0:00:05.9]} 26. Rh4 {[%clk 0:00:13.9]} 26... Ke6 {[%clk
0:00:06.2]} 27. Ra4 {[%clk 0:00:12.6]} 27... Bf3 {[%clk 0:00:03.5]} 28. Rf1
{[%clk 0:00:11.3]} 28... Bxh5 {[%clk 0:00:02.7]} 29. Rxa6 {[%clk 0:00:11.8]}
29... Rc8 {[%clk 0:00:02.7]} 30. Ra5 {[%clk 0:00:12]} 30... e4 {[%clk 0:00:02]}
31. Re5+ {[%clk 0:00:12.6]} 31... Kd7 {[%clk 0:00:02.7]} 32. Rfxf5 {[%clk
0:00:11]} 32... Rxf5 {[%clk 0:00:03.3]} 33. Rxf5 {[%clk 0:00:11.9]} 33... Bg6
{[%clk 0:00:02.4]} 34. Rf4 {[%clk 0:00:08.9]} 34... h5 {[%clk 0:00:01.9]} 35.
Bxg7 {[%clk 0:00:08.8]} 35... Rg8 {[%clk 0:00:02.7]} 36. Bd4 {[%clk 0:00:08.7]}
36... Ke6 {[%clk 0:00:01.6]} 37. c4 {[%clk 0:00:08.5]} 37... Bf5 {[%clk
0:00:01.9]} 38. Rh4 {[%clk 0:00:07.2]} 38... Bg4 {[%clk 0:00:01.9]} 39. Bb6
{[%clk 0:00:04.1]} 39... Rf8 {[%clk 0:00:02.6]} 40. Bc7 {[%clk 0:00:04]} 40...
Rf3 {[%clk 0:00:02.9]} 41. Bf4 {[%clk 0:00:03.7]} 41... Rf2 {[%clk 0:00:02.9]}
42. Rh1 {[%clk 0:00:03.3]} 42... Be2 {[%clk 0:00:03.3]} 43. Rc1 {[%clk
0:00:03.1]} 43... Bd3+ {[%clk 0:00:03.7]} 44. Ka2 {[%clk 0:00:03.7]} 44... c5
{[%clk 0:00:04.2]} 45. Kb3 {[%clk 0:00:04.1]} 45... Kd7 {[%clk 0:00:03.5]} 46.
Kc3 {[%clk 0:00:04.7]} 46... Kc6 {[%clk 0:00:04.1]} 47. b4 {[%clk 0:00:05.3]}
47... Ra2 {[%clk 0:00:03.4]} 48. Kb3 {[%clk 0:00:05.8]} 48... Rg2 {[%clk
0:00:03.6]} 49. b5+ {[%clk 0:00:06.2]} 49... Kb6 {[%clk 0:00:04.2]} 50. a4
{[%clk 0:00:06.8]} 50... Rf2 {[%clk 0:00:03.4]} 51. a5+ {[%clk 0:00:04.7]} 51...
Kxa5 {[%clk 0:00:02.9]} 52. Bc7# {[%clk 0:00:05.1]} 1-0

[Event "Early-Titled-Tuesday-Blitz-April-23-2024"]
[Site "Chess.com"]
[Date "2024.04.23"]
[Round "3"]
[White "xxysoul6"]
[Black "Nimrod_Veinberg"]
[Result "0-1"]
[WhiteElo "2992"]
[BlackElo "2761"]
[TimeControl "180+1"]
[EndTime "8:29:44 PDT"]
[Termination "Nimrod_Veinberg won on time"]

1. c4 {[%clk 0:02:59.8]} 1... e6 {[%clk 0:02:57]} 2. Nf3 {[%clk 0:02:58.5]} 2...
d5 {[%clk 0:02:54.4]} 3. e3 {[%clk 0:02:58.7]} 3... Nf6 {[%clk 0:02:53.2]} 4.
Nc3 {[%clk 0:02:50.1]} 4... b6 {[%clk 0:02:50.6]} 5. b3 {[%clk 0:01:19.7]} 5...
Bb7 {[%clk 0:02:47.5]} 6. Bb2 {[%clk 0:01:18]} 6... Be7 {[%clk 0:02:47.1]} 7.
cxd5 {[%clk 0:01:14.9]} 7... exd5 {[%clk 0:02:43.9]} 8. Nd4 {[%clk 0:01:14.9]}
8... g6 {[%clk 0:02:40.3]} 9. h4 {[%clk 0:01:09.5]} 9... c5 {[%clk 0:02:32.7]}
10. Bb5+ {[%clk 0:01:07.4]} 10... Kf8 {[%clk 0:02:28.7]} 11. Nf3 {[%clk
0:01:06.9]} 11... a6 {[%clk 0:02:19.4]} 12. Bd3 {[%clk 0:01:04.2]} 12... h6
{[%clk 0:02:12]} 13. Ne2 {[%clk 0:01:03.3]} 13... Nc6 {[%clk 0:02:06.4]} 14. Rc1
{[%clk 0:01:02.6]} 14... Rg8 {[%clk 0:01:51.3]} 15. Bb1 {[%clk 0:01:00]} 15...
Qd6 {[%clk 0:01:44.8]} 16. d4 {[%clk 0:00:59.6]} 16... Ne4 {[%clk 0:01:35.5]}
17. dxc5 {[%clk 0:00:57.7]} 17... bxc5 {[%clk 0:01:36.4]} 18. Ba3 {[%clk
0:00:48.6]} 18... Nb4 {[%clk 0:01:28.1]} 19. Nd2 {[%clk 0:00:42.9]} 19... Nxd2
{[%clk 0:01:21.1]} 20. Qxd2 {[%clk 0:00:43.4]} 20... a5 {[%clk 0:01:20.2]} 21.
Bb2 {[%clk 0:00:42]} 21... Rc8 {[%clk 0:01:14.2]} 22. h5 {[%clk 0:00:40.7]}
22... gxh5 {[%clk 0:01:10.7]} 23. Ng3 {[%clk 0:00:39.9]} 23... Rxg3 {[%clk
0:01:05.8]} 24. fxg3 {[%clk 0:00:40.3]} 24... Qxg3+ {[%clk 0:01:06.7]} 25. Qf2
{[%clk 0:00:38.7]} 25... Qxf2+ {[%clk 0:00:34.2]} 26. Kxf2 {[%clk 0:00:36.3]}
26... Bg5 {[%clk 0:00:35.1]} 27. Rxh5 {[%clk 0:00:32.2]} 27... d4 {[%clk
0:00:35]} 28. Rxg5 {[%clk 0:00:29.9]} 28... dxe3+ {[%clk 0:00:28]} 29. Kxe3
{[%clk 0:00:30.8]} 29... hxg5 {[%clk 0:00:28.7]} 30. Rh1 {[%clk 0:00:29.7]}
30... Ke7 {[%clk 0:00:28.1]} 31. Rh5 {[%clk 0:00:28.9]} 31... Nd5+ {[%clk
0:00:24.6]} 32. Kf2 {[%clk 0:00:27.9]} 32... c4 {[%clk 0:00:05.9]} 33. bxc4
{[%clk 0:00:24.7]} 33... Rxc4 {[%clk 0:00:06.8]} 34. Rxg5 {[%clk 0:00:21.8]}
34... Rf4+ {[%clk 0:00:07.7]} 35. Kg3 {[%clk 0:00:20.9]} 35... Rf1 {[%clk
0:00:05.4]} 36. Be4 {[%clk 0:00:17.8]} 36... Rd1 {[%clk 0:00:05.2]} 37. Rf5
{[%clk 0:00:16.8]} 37... Ke6 {[%clk 0:00:04.3]} 38. Rf2 {[%clk 0:00:13.5]} 38...
Bc6 {[%clk 0:00:02.9]} 39. Ba3 {[%clk 0:00:11]} 39... Ne7 {[%clk 0:00:01.7]} 40.
Bc2 {[%clk 0:00:07.3]} 40... Rd7 {[%clk 0:00:01.8]} 41. Re2+ {[%clk 0:00:04.3]}
41... Kf6 {[%clk 0:00:02.2]} 42. Bb2+ {[%clk 0:00:02.9]} 42... Kg5 {[%clk
0:00:01.7]} 43. Re5+ {[%clk 0:00:02.7]} 43... f5 {[%clk 0:00:02.2]} 0-1

[Event "Early-Titled-Tuesday-Blitz-April-23-2024"]
[Site "Chess.com"]
[Date "2024.04.23"]
[Round "3"]
[White "InitiatingASC"]
[Black "UnTucopalaTimba"]
[Result "1-0"]
[WhiteElo "2362"]
[BlackElo "2027"]
[TimeControl "180+1"]
[EndTime "8:29:45 PDT"]
[Termination "InitiatingASC won on time"]

1. d4 {[%clk 0:03:00.9]} 1... Nf6 {[%clk 0:02:59.7]} 2. c4 {[%clk 0:03:00]} 2...
e6 {[%clk 0:02:59.4]} 3. Nc3 {[%clk 0:03:00.2]} 3... Bb4 {[%clk 0:02:58.6]} 4.
e3 {[%clk 0:02:59.6]} 4... O-O {[%clk 0:02:56]} 5. Bd3 {[%clk 0:02:58.6]} 5...
d5 {[%clk 0:02:49]} 6. Nf3 {[%clk 0:02:57.6]} 6... c5 {[%clk 0:02:46]} 7. O-O
{[%clk 0:02:56.7]} 7... dxc4 {[%clk 0:02:45.7]} 8. Bxc4 {[%clk 0:02:56.6]} 8...
Nc6 {[%clk 0:02:45.4]} 9. a3 {[%clk 0:02:53.7]} 9... Bxc3 {[%clk 0:02:45.3]} 10.
bxc3 {[%clk 0:02:54.6]} 10... Qc7 {[%clk 0:02:45.3]} 11. Qe2 {[%clk 0:02:52.6]}
11... e5 {[%clk 0:02:37.2]} 12. Bb2 {[%clk 0:02:44.1]} 12... Bg4 {[%clk
0:02:26.8]} 13. h3 {[%clk 0:02:44.1]} 13... Bh5 {[%clk 0:02:26.1]} 14. g4 {[%clk
0:02:44.1]} 14... Bg6 {[%clk 0:02:14.5]} 15. Nh4 {[%clk 0:02:37.9]} 15... exd4
{[%clk 0:02:02]} 16. cxd4 {[%clk 0:02:35.1]} 16... cxd4 {[%clk 0:02:01.5]} 17.
Nxg6 {[%clk 0:02:34.6]} 17... hxg6 {[%clk 0:02:00]} 18. exd4 {[%clk 0:02:31.8]}
18... Rfe8 {[%clk 0:01:58.9]} 19. Qf3 {[%clk 0:02:22.8]} 19... Rad8 {[%clk
0:01:46.4]} 20. Rfd1 {[%clk 0:02:18.3]} 20... a6 {[%clk 0:01:42.5]} 21. Rac1
{[%clk 0:02:16.4]} 21... Qb6 {[%clk 0:01:38.5]} 22. Qb3 {[%clk 0:01:59.3]} 22...
Qxb3 {[%clk 0:01:32]} 23. Bxb3 {[%clk 0:01:59.2]} 23... Nd5 {[%clk 0:01:26.6]}
24. Ba4 {[%clk 0:01:52.4]} 24... Re6 {[%clk 0:01:21.2]} 25. Re1 {[%clk
0:01:36.5]} 25... Rxe1+ {[%clk 0:01:16.1]} 26. Rxe1 {[%clk 0:01:36.1]} 26... b5
{[%clk 0:01:15.9]} 27. Bb3 {[%clk 0:01:34.2]} 27... Kf8 {[%clk 0:01:13.1]} 28.
Kh2 {[%clk 0:01:23.6]} 28... Nf4 {[%clk 0:01:04.6]} 29. Rd1 {[%clk 0:01:00.9]}
29... Na5 {[%clk 0:01:02.1]} 30. Ba2 {[%clk 0:00:53.5]} 30... Nd5 {[%clk
0:00:59.2]} 31. Kg3 {[%clk 0:00:39.9]} 31... Nc4 {[%clk 0:00:58.1]} 32. Bc1
{[%clk 0:00:38.4]} 32... f6 {[%clk 0:00:51.5]} 33. a4 {[%clk 0:00:35.8]} 33...
Rd7 {[%clk 0:00:45.5]} 34. Rd3 {[%clk 0:00:29.8]} 34... Nb4 {[%clk 0:00:42]} 35.
Bxc4 {[%clk 0:00:29.2]} 35... bxc4 {[%clk 0:00:37.8]} 36. Rd1 {[%clk 0:00:22.2]}
36... Nd3 {[%clk 0:00:33.5]} 37. Ba3+ {[%clk 0:00:21.4]} 37... Kf7 {[%clk
0:00:32.8]} 38. Kf3 {[%clk 0:00:13]} 38... Rxd4 {[%clk 0:00:31.5]} 39. Ke3
{[%clk 0:00:13.6]} 39... Rd7 {[%clk 0:00:29.5]} 40. Rb1 {[%clk 0:00:13.1]} 40...
c3 {[%clk 0:00:18.6]} 41. Rb3 {[%clk 0:00:11.4]} 41... Ne5 {[%clk 0:00:08.8]}
42. Rxc3 {[%clk 0:00:11.5]} 42... a5 {[%clk 0:00:07.1]} 43. f4 {[%clk
0:00:11.7]} 43... Nxg4+ {[%clk 0:00:03.5]} 44. hxg4 {[%clk 0:00:11.5]} 44... Rd1
{[%clk 0:00:03.4]} 45. Rd3 {[%clk 0:00:11.7]} 45... Rh1 {[%clk 0:00:02.8]} 46.
Ke4 {[%clk 0:00:11.4]} 46... Re1+ {[%clk 0:00:02.4]} 47. Kf3 {[%clk 0:00:11.5]}
47... Rh1 {[%clk 0:00:02.3]} 48. Rd7+ {[%clk 0:00:11.5]} 48... Kg8 {[%clk
0:00:02]} 49. Rd8+ {[%clk 0:00:11.6]} 49... Kf7 {[%clk 0:00:02.2]} 50. Rd3
{[%clk 0:00:12.1]} 50... Rh3+ {[%clk 0:00:02.1]} 51. Ke2 {[%clk 0:00:12.6]}
51... Rh2+ {[%clk 0:00:02.1]} 52. Kf1 {[%clk 0:00:12.5]} 52... Ra2 {[%clk
0:00:01.5]} 53. Re3 {[%clk 0:00:11.7]} 53... Ra1+ {[%clk 0:00:01.3]} 54. Kf2
{[%clk 0:00:12.1]} 1-0

[Event "Early-Titled-Tuesday-Blitz-April-23-2024"]
[Site "Chess.com"]
[Date "2024.04.23"]
[Round "3"]
[White "superchess02"]
[Black "subham777"]
[Result "1/2-1/2"]
[WhiteElo "2892"]
[BlackElo "2551"]
[TimeControl "180+1"]
[EndTime "8:29:46 PDT"]
[Termination "Game drawn by repetition"]

1. d4 {[%clk 0:02:59.9]} 1... d5 {[%clk 0:02:59.2]} 2. c4 {[%clk 0:03:00.2]}
2... e6 {[%clk 0:02:58.4]} 3. Nc3 {[%clk 0:03:00.9]} 3... Nf6 {[%clk 0:02:57.9]}
4. Bg5 {[%clk 0:03:00.7]} 4... Be7 {[%clk 0:02:56]} 5. e3 {[%clk 0:03:01]} 5...
O-O {[%clk 0:02:56.1]} 6. Nf3 {[%clk 0:03:01.6]} 6... Ne4 {[%clk 0:02:55.8]} 7.
Bxe7 {[%clk 0:03:01.5]} 7... Qxe7 {[%clk 0:02:56.7]} 8. Rc1 {[%clk 0:03:01.8]}
8... c6 {[%clk 0:02:55.7]} 9. Bd3 {[%clk 0:03:00.6]} 9... f5 {[%clk 0:02:47.3]}
10. O-O {[%clk 0:02:55.4]} 10... Nd7 {[%clk 0:02:46.2]} 11. a3 {[%clk 0:02:51]}
11... Ndf6 {[%clk 0:02:45.5]} 12. Ne5 {[%clk 0:02:49.9]} 12... Bd7 {[%clk
0:02:43]} 13. f3 {[%clk 0:02:40.9]} 13... Nxc3 {[%clk 0:02:41.1]} 14. Rxc3
{[%clk 0:02:41.8]} 14... Be8 {[%clk 0:02:37.5]} 15. b4 {[%clk 0:02:24.4]} 15...
Nd7 {[%clk 0:02:33.9]} 16. f4 {[%clk 0:02:07.4]} 16... Nxe5 {[%clk 0:02:28.2]}
17. fxe5 {[%clk 0:02:03.1]} 17... Qg5 {[%clk 0:02:27]} 18. Qc1 {[%clk
0:01:25.4]} 18... Bh5 {[%clk 0:02:17.3]} 19. cxd5 {[%clk 0:01:25.3]} 19... exd5
{[%clk 0:02:13.6]} 20. b5 {[%clk 0:01:23]} 20... Be8 {[%clk 0:01:57.4]} 21. bxc6
{[%clk 0:01:09.8]} 21... Bxc6 {[%clk 0:01:55.4]} 22. Rf4 {[%clk 0:01:07.1]}
22... g6 {[%clk 0:01:51.8]} 23. Bb1 {[%clk 0:00:58.1]} 23... Qe7 {[%clk
0:01:44.4]} 24. Ba2 {[%clk 0:00:58]} 24... Qd7 {[%clk 0:01:42.6]} 25. h4 {[%clk
0:00:51.4]} 25... Rad8 {[%clk 0:01:38.7]} 26. Qe1 {[%clk 0:00:47.8]} 26... Kh8
{[%clk 0:01:37.4]} 27. Qg3 {[%clk 0:00:46.6]} 27... Qe7 {[%clk 0:01:37.3]} 28.
Rf2 {[%clk 0:00:42.9]} 28... a5 {[%clk 0:01:26.9]} 29. Rc5 {[%clk 0:00:38.4]}
29... a4 {[%clk 0:01:22.6]} 30. h5 {[%clk 0:00:19.1]} 30... gxh5 {[%clk
0:01:08.5]} 31. Bb1 {[%clk 0:00:18.7]} 31... h4 {[%clk 0:00:59.4]} 32. Qh3
{[%clk 0:00:18.8]} 32... Rf7 {[%clk 0:00:40.9]} 33. Rf4 {[%clk 0:00:18.8]} 33...
Rg7 {[%clk 0:00:35.1]} 34. Bxf5 {[%clk 0:00:10.4]} 34... Rdg8 {[%clk 0:00:29]}
35. Rc2 {[%clk 0:00:11]} 35... Rg3 {[%clk 0:00:11.7]} 36. Qxh4 {[%clk 0:00:11]}
36... Qxh4 {[%clk 0:00:11.8]} 37. Rxh4 {[%clk 0:00:11.9]} 37... R8g7 {[%clk
0:00:11.8]} 38. Re2 {[%clk 0:00:06.4]} 38... Bb5 {[%clk 0:00:11.8]} 39. Rc2
{[%clk 0:00:06.6]} 39... Bc4 {[%clk 0:00:07]} 40. e4 {[%clk 0:00:06.3]} 40...
Re3 {[%clk 0:00:02.5]} 41. exd5 {[%clk 0:00:06.4]} 41... Re1+ {[%clk 0:00:02.9]}
42. Kh2 {[%clk 0:00:06.4]} 42... Re2 {[%clk 0:00:02.5]} 43. Rxc4 {[%clk
0:00:06.1]} 43... Rexg2+ {[%clk 0:00:02.7]} 44. Kh1 {[%clk 0:00:06.3]} 44...
Rg1+ {[%clk 0:00:03]} 45. Kh2 {[%clk 0:00:06.9]} 45... R1g2+ {[%clk 0:00:03]}
46. Kh1 {[%clk 0:00:07.1]} 46... Rg1+ {[%clk 0:00:03.4]} 47. Kh2 {[%clk
0:00:07.7]} 47... R1g2+ {[%clk 0:00:03.9]} 1/2-1/2

[Event "Early-Titled-Tuesday-Blitz-April-23-2024"]
[Site "Chess.com"]
[Date "2024.04.23"]
[Round "3"]
[White "Kobalia"]
[Black "JeFumeDesClopes"]
[Result "1-0"]
[WhiteElo "2817"]
[BlackElo "2600"]
[TimeControl "180+1"]
[EndTime "8:29:47 PDT"]
[Termination "Kobalia won on time"]

1. d4 {[%clk 0:03:00.9]} 1... Nf6 {[%clk 0:02:59.2]} 2. Nf3 {[%clk 0:03:01.3]}
2... c5 {[%clk 0:02:58.9]} 3. c3 {[%clk 0:02:59.4]} 3... g6 {[%clk 0:02:58.3]}
4. Bg5 {[%clk 0:02:58.9]} 4... Bg7 {[%clk 0:02:59.2]} 5. Nbd2 {[%clk 0:02:58.8]}
5... O-O {[%clk 0:02:59.2]} 6. Bxf6 {[%clk 0:02:57.9]} 6... Bxf6 {[%clk
0:02:58.7]} 7. Ne4 {[%clk 0:02:58.2]} 7... cxd4 {[%clk 0:02:49.4]} 8. Nxf6+
{[%clk 0:02:58]} 8... exf6 {[%clk 0:02:50.3]} 9. Nxd4 {[%clk 0:02:56.4]} 9... d5
{[%clk 0:02:45.1]} 10. e3 {[%clk 0:02:51.7]} 10... Nc6 {[%clk 0:02:43.2]} 11.
Be2 {[%clk 0:02:52]} 11... Re8 {[%clk 0:02:40.5]} 12. O-O {[%clk 0:02:52]} 12...
h5 {[%clk 0:02:41]} 13. Qc2 {[%clk 0:02:35.3]} 13... h4 {[%clk 0:02:38]} 14. h3
{[%clk 0:02:34.4]} 14... Kg7 {[%clk 0:02:38]} 15. Rad1 {[%clk 0:02:33.4]} 15...
Qd6 {[%clk 0:02:38.1]} 16. Nb5 {[%clk 0:02:27.8]} 16... Qe5 {[%clk 0:02:36.1]}
17. Bf3 {[%clk 0:02:26.2]} 17... Be6 {[%clk 0:02:35.2]} 18. Qa4 {[%clk
0:02:18.8]} 18... g5 {[%clk 0:02:19.2]} 19. Rfe1 {[%clk 0:02:17]} 19... f5
{[%clk 0:02:12]} 20. Nd4 {[%clk 0:02:05.5]} 20... Ne7 {[%clk 0:01:39.2]} 21. Nc2
{[%clk 0:01:55.1]} 21... a6 {[%clk 0:01:33.4]} 22. Qd4 {[%clk 0:01:54]} 22...
Nc6 {[%clk 0:01:32]} 23. Qxe5+ {[%clk 0:01:54.2]} 23... Nxe5 {[%clk 0:01:31.3]}
24. Bxd5 {[%clk 0:01:54.4]} 24... Rad8 {[%clk 0:01:27.5]} 25. Bxe6 {[%clk
0:01:26.4]} 25... fxe6 {[%clk 0:01:28.1]} 26. Nd4 {[%clk 0:01:26.3]} 26... Kf6
{[%clk 0:01:28.6]} 27. Kf1 {[%clk 0:01:16.9]} 27... g4 {[%clk 0:01:24.6]} 28.
Ke2 {[%clk 0:01:09.3]} 28... Rg8 {[%clk 0:01:23.6]} 29. Nb3 {[%clk 0:01:04.1]}
29... Rc8 {[%clk 0:01:20.3]} 30. Nc1 {[%clk 0:00:51.5]} 30... gxh3 {[%clk
0:01:15.2]} 31. gxh3 {[%clk 0:00:52.4]} 31... Rg2 {[%clk 0:01:15.6]} 32. Nd3
{[%clk 0:00:52.1]} 32... Rcg8 {[%clk 0:00:49.4]} 33. Nf4 {[%clk 0:00:50.9]}
33... Rh2 {[%clk 0:00:36]} 34. Rd6 {[%clk 0:00:49.5]} 34... Re8 {[%clk
0:00:29.1]} 35. Rg1 {[%clk 0:00:48.8]} 35... Kf7 {[%clk 0:00:23.5]} 36. b3
{[%clk 0:00:45.6]} 36... Re7 {[%clk 0:00:21.1]} 37. c4 {[%clk 0:00:40.8]} 37...
a5 {[%clk 0:00:17.6]} 38. Rb6 {[%clk 0:00:33.9]} 38... Nc6 {[%clk 0:00:13]} 39.
a3 {[%clk 0:00:32.9]} 39... Rd7 {[%clk 0:00:10.5]} 40. b4 {[%clk 0:00:32.2]}
40... axb4 {[%clk 0:00:10.6]} 41. axb4 {[%clk 0:00:33.1]} 41... e5 {[%clk
0:00:10.2]} 42. Nd3 {[%clk 0:00:26.2]} 42... Rxh3 {[%clk 0:00:02.4]} 43. Rxc6
{[%clk 0:00:25.9]} 43... bxc6 {[%clk 0:00:02.5]} 44. Nxe5+ {[%clk 0:00:25.6]}
44... Ke6 {[%clk 0:00:03.2]} 45. Nxd7 {[%clk 0:00:25]} 45... Kxd7 {[%clk
0:00:04.1]} 46. Rg5 {[%clk 0:00:21.1]} 46... Ke6 {[%clk 0:00:04.4]} 47. Rg6+
{[%clk 0:00:21]} 47... Kd7 {[%clk 0:00:04.8]} 48. Rf6 {[%clk 0:00:21.2]} 48...
Rh1 {[%clk 0:00:05.5]} 49. Rxf5 {[%clk 0:00:21.1]} 49... Rb1 {[%clk 0:00:05.7]}
50. b5 {[%clk 0:00:21.2]} 50... cxb5 {[%clk 0:00:06.6]} 51. cxb5 {[%clk
0:00:20.5]} 51... h3 {[%clk 0:00:05.3]} 52. Rh5 {[%clk 0:00:20.5]} 52... Rh1
{[%clk 0:00:03.5]} 53. Rh6 {[%clk 0:00:18.9]} 53... h2 {[%clk 0:00:03.4]} 54. b6
{[%clk 0:00:18.8]} 54... Kc8 {[%clk 0:00:03.8]} 55. Rh7 {[%clk 0:00:17.7]} 55...
Kb8 {[%clk 0:00:03]} 56. b7 {[%clk 0:00:17.4]} 56... Ka7 {[%clk 0:00:02.5]} 57.
Kf3 {[%clk 0:00:17.5]} 57... Kb8 {[%clk 0:00:01.6]} 58. Kg2 {[%clk 0:00:17.7]}
1-0

[Event "Early-Titled-Tuesday-Blitz-April-23-2024"]
[Site "Chess.com"]
[Date "2024.04.23"]
[Round "3"]
[White "GambitGiesbergen"]
[Black "Chess_RSM"]
[Result "1-0"]
[WhiteElo "2336"]
[BlackElo "2576"]
[TimeControl "180+1"]
[EndTime "8:29:47 PDT"]
[Termination "GambitGiesbergen won on time"]

1. e4 {[%clk 0:03:00.9]} 1... e6 {[%clk 0:02:58.7]} 2. d4 {[%clk 0:03:00.9]}
2... d5 {[%clk 0:02:59.4]} 3. Nc3 {[%clk 0:03:01.6]} 3... f5 {[%clk 0:02:53.9]}
4. exf5 {[%clk 0:03:00.3]} 4... exf5 {[%clk 0:02:54.8]} 5. Qh5+ {[%clk
0:03:00.9]} 5... g6 {[%clk 0:02:55]} 6. Qe2+ {[%clk 0:03:01.4]} 6... Be7 {[%clk
0:02:55.6]} 7. Bg5 {[%clk 0:02:55.4]} 7... c6 {[%clk 0:02:53.9]} 8. Qe5 {[%clk
0:02:52.5]} 8... Kf8 {[%clk 0:02:36.8]} 9. Qxh8 {[%clk 0:02:37.6]} 9... Bxg5
{[%clk 0:02:36.8]} 10. Qxh7 {[%clk 0:02:32.9]} 10... Qe8+ {[%clk 0:02:37.2]} 11.
Be2 {[%clk 0:02:27.1]} 11... Nd7 {[%clk 0:02:37.3]} 12. Nf3 {[%clk 0:02:22.8]}
12... Ndf6 {[%clk 0:02:31.5]} 13. Qc7 {[%clk 0:02:20.4]} 13... Bh6 {[%clk
0:02:17.5]} 14. O-O {[%clk 0:02:08.1]} 14... Qe7 {[%clk 0:02:03.4]} 15. Qxe7+
{[%clk 0:02:04.7]} 15... Nxe7 {[%clk 0:02:04.3]} 16. Ne5 {[%clk 0:02:05]} 16...
Be6 {[%clk 0:02:00.8]} 17. Bd3 {[%clk 0:01:59.7]} 17... Re8 {[%clk 0:02:00.8]}
18. Na4 {[%clk 0:01:59.1]} 18... Nd7 {[%clk 0:01:50.7]} 19. Nxd7+ {[%clk
0:01:56.3]} 19... Bxd7 {[%clk 0:01:51.6]} 20. Nc5 {[%clk 0:01:56.7]} 20... Bc8
{[%clk 0:01:52]} 21. Rfe1 {[%clk 0:01:57.2]} 21... Kf7 {[%clk 0:01:52.2]} 22. c3
{[%clk 0:01:51.8]} 22... b6 {[%clk 0:01:52.1]} 23. Nb3 {[%clk 0:01:51.9]} 23...
Rd8 {[%clk 0:01:50.6]} 24. Kf1 {[%clk 0:01:51.6]} 24... Ng8 {[%clk 0:01:50.2]}
25. Re2 {[%clk 0:01:51.7]} 25... Bg5 {[%clk 0:01:50.5]} 26. f3 {[%clk
0:01:52.4]} 26... Bf4 {[%clk 0:01:50.7]} 27. g3 {[%clk 0:01:52.4]} 27... Bd6
{[%clk 0:01:47.1]} 28. Rae1 {[%clk 0:01:53]} 28... Nf6 {[%clk 0:01:47.2]} 29.
Kg2 {[%clk 0:01:51.1]} 29... Bd7 {[%clk 0:01:47.7]} 30. Nc1 {[%clk 0:01:47]}
30... Rh8 {[%clk 0:01:46.4]} 31. Bc2 {[%clk 0:01:44.2]} 31... Rb8 {[%clk
0:01:42.8]} 32. Nd3 {[%clk 0:01:44.2]} 32... Kg7 {[%clk 0:01:33.8]} 33. a4
{[%clk 0:01:43.1]} 33... a5 {[%clk 0:01:33]} 34. Ne5 {[%clk 0:01:40.1]} 34...
Be8 {[%clk 0:01:32.1]} 35. Nd3 {[%clk 0:01:38.1]} 35... Bd7 {[%clk 0:01:31.8]}
36. Bb1 {[%clk 0:01:18.3]} 36... Bc8 {[%clk 0:01:20.2]} 37. Ne5 {[%clk
0:01:18.1]} 37... Bb7 {[%clk 0:01:17]} 38. Bd3 {[%clk 0:01:12.6]} 38... Rd8
{[%clk 0:01:14.2]} 39. b3 {[%clk 0:01:10.1]} 39... c5 {[%clk 0:01:10.5]} 40. Bb5
{[%clk 0:01:08.5]} 40... Rc8 {[%clk 0:00:48.1]} 41. Nd7 {[%clk 0:01:07]} 41...
Nxd7 {[%clk 0:00:48.1]} 42. Bxd7 {[%clk 0:01:07.9]} 42... Rc7 {[%clk 0:00:48.7]}
43. Bb5 {[%clk 0:01:03.4]} 43... Bc8 {[%clk 0:00:43.5]} 44. Re8 {[%clk
0:01:02.5]} 44... Kf7 {[%clk 0:00:42.1]} 45. Rh8 {[%clk 0:01:01.2]} 45... Be7
{[%clk 0:00:42.4]} 46. Rh7+ {[%clk 0:00:59.4]} 46... Kf6 {[%clk 0:00:41.4]} 47.
Re2 {[%clk 0:00:45.7]} 47... Be6 {[%clk 0:00:39.3]} 48. Rh8 {[%clk 0:00:40.7]}
48... Bc8 {[%clk 0:00:12.1]} 49. h4 {[%clk 0:00:40.2]} 49... Kg7 {[%clk
0:00:09.8]} 50. Re8 {[%clk 0:00:39.6]} 50... Kf7 {[%clk 0:00:09.6]} 51. Bc6
{[%clk 0:00:23.9]} 51... Be6 {[%clk 0:00:06.9]} 52. Bb5 {[%clk 0:00:18.8]} 52...
Bc8 {[%clk 0:00:07.1]} 53. Kf2 {[%clk 0:00:18.5]} 53... Kf6 {[%clk 0:00:03]} 54.
Bc6 {[%clk 0:00:12.1]} 1-0